bitfinex-derivatives/quotes_BNBF0:USTF0_20251225
["timestamp","ask_amount","ask_price","bid_price","bid_amount"]
[1766663100909,1.19430087,838.13,837.38,0.89170303]
[1766663101110,1.19430087,838.12,837.38,0.89170303]
[1766663101310,0.20768246,838.14,836.54,0.00954446]
[1766663101311,0.20768246,838.14,837.39,0.89170303]
[1766663101511,1.19428082,838.13,837.39,0.89170303]
[1766663101709,0.20768246,838.14,837.39,0.89170303]
[1766663101907,1.19428082,838.13,837.39,0.89170303]
[1766663102112,0.20768246,838.14,837.39,0.89170303]
[1766663102408,1.19428058,838.13,837.39,0.89170303]
[1766663102612,0.20768246,838.14,837.39,0.89170303]
[1766663102812,1.19428058,838.13,837.39,0.89170303]
[1766663103008,0.20768246,838.14,837.39,0.89170303]
[1766663103511,0.20768246,838.14,837.41,0.89170303]
[1766663105214,0.20768246,838.14,837.4,0.89170303]
[1766663105414,0.20768246,838.14,837.41,0.89170303]
[1766663109416,0.20768246,838.14,837.26,1.19046268]
[1766663109614,0.20768246,838.14,837.41,0.8909808]
[1766663110318,0.89353365,838.29,837.43,0.8909808]
[1766663110520,0.20764281,838.26,837.48,0.8909808]
[1766663110715,1.19413796,838.25,837.48,0.8909808]
[1766663110918,1.19413796,838.24,837.48,0.8909808]
[1766663111118,0.20764281,838.26,837.48,0.8909808]
[1766663111319,0.20764281,838.26,837.49,0.8909808]
[1766663112215,0.20764281,838.26,837.48,0.8909808]
[1766663115725,0.20764281,838.26,837.53,0.8909808]
[1766663116022,0.20764281,838.26,837.54,0.8909808]
[1766663116220,0.20764281,838.26,837.53,0.8909808]
[1766663118026,0.20764281,838.26,837.54,0.8909808]
[1766663118226,0.20764281,838.26,837.55,0.8909808]
[1766663118426,0.20764281,838.26,837.54,0.8909808]
[1766663118628,0.89353365,838.46,837.54,0.8909808]
[1766663118929,0.2076106,838.36,837.54,0.8909808]
[1766663120227,0.2076106,838.36,837.56,0.8909808]
[1766663120423,0.2076106,838.36,837.65,0.8909808]
[1766663120828,0.89353365,838.6,837.67,0.8909808]
[1766663121025,1.19381375,838.59,837.67,0.8909808]
[1766663121325,0.20757902,838.5,837.65,0.8909808]
[1766663123228,0.20757902,838.5,837.64,0.8909808]
[1766663124227,0.20757902,838.5,837.63,0.8909808]
[1766663124630,0.20757902,838.5,837.64,0.8909808]
[1766663125431,0.20757902,838.5,837.63,0.8909808]
[1766663127329,0.20757902,838.5,837.64,0.8909808]
[1766663127728,0.20757902,838.5,837.66,0.8909808]
[1766663127934,0.20757902,838.5,837.7,0.8909808]
[1766663128228,0.20757902,838.5,837.69,0.8909808]
[1766663128429,0.20757902,838.5,837.53,0.8909808]
[1766663128630,0.20757902,838.5,836.63,2.98109633]
[1766663128631,1.19382283,838.49,837.52,0.8909808]
[1766663128829,1.19382283,838.48,837.52,0.8909808]
[1766663129029,1.19382283,838.47,837.52,0.8909808]
[1766663129228,0.20757902,838.5,837.52,0.8909808]
[1766663129431,1.19394489,838.49,837.52,0.8909808]
[1766663137233,1.19394489,838.49,837.53,0.8909808]
[1766663140336,1.19394489,838.49,837.54,0.8909808]
[1766663142447,1.19394489,838.49,837.55,0.8909808]
[1766663142844,1.19394489,838.49,837.53,0.8909808]
[1766663143448,1.19394489,838.49,837.54,0.8909808]
[1766663146252,0.89353365,838.45,837.49,0.8909808]
[1766663146452,1.19394489,838.44,837.49,0.8909808]
[1766663147251,2.08747854,838.44,837.5,0.8909808]
[1766663147452,1.19394489,838.43,837.5,0.8909808]
[1766663149253,2.08747854,838.43,837.51,0.8909808]
[1766663149449,1.19394489,838.42,837.51,0.8909808]
[1766663151253,2.08747854,838.42,837.51,0.8909808]
[1766663151454,1.19394489,838.41,837.51,0.8909808]
[1766663151754,1.19394489,838.41,837.52,0.8909808]
[1766663151954,1.19394489,838.4,837.52,0.8909808]
[1766663152154,1.19394489,838.39,837.52,0.8909808]
[1766663152352,1.19394489,838.38,837.53,0.8909808]
[1766663152553,1.19394489,838.37,837.53,0.8909808]
[1766663152756,1.19394489,838.36,837.53,0.8909808]
[1766663153051,1.19394489,838.35,837.53,0.8909808]
[1766663153256,1.19394489,838.34,837.53,0.8909808]
[1766663153552,1.19394489,838.33,837.53,0.8909808]
[1766663153856,1.19404425,838.32,837.53,0.8909808]
[1766663154055,0.89353365,838.42,837.53,0.8909808]
[1766663154255,1.1940439,838.41,837.53,0.8909808]
[1766663154455,1.1940439,838.4,837.54,0.8909808]
[1766663154655,1.1940439,838.39,837.54,0.8909808]
[1766663154857,1.1940439,838.38,837.54,0.8909808]
[1766663155052,1.1940439,838.37,837.54,0.8909808]
[1766663155258,1.1940439,838.36,837.54,0.8909808]
[1766663155553,1.1940439,838.35,837.54,0.8909808]
[1766663155753,1.1940439,838.34,837.54,0.8909808]
[1766663155957,1.1940439,838.33,837.54,0.8909808]
[1766663156252,1.1940439,838.32,837.55,0.8909808]
[1766663156554,1.1940439,838.31,837.55,0.8909808]
[1766663156759,0.89353365,838.41,837.55,0.8909808]
[1766663156951,1.1940439,838.4,837.55,0.8909808]
[1766663157156,1.1940439,838.39,837.55,0.8909808]
[1766663157354,1.1940439,838.38,837.55,0.8909808]
[1766663157654,1.1940439,838.37,837.55,0.8909808]
[1766663157853,1.1940439,838.36,837.55,0.8909808]
[1766663158154,1.1940439,838.35,837.55,0.8909808]
[1766663158357,1.1940439,838.34,837.55,0.8909808]
[1766663158553,1.1940439,838.33,837.55,0.8909808]
[1766663158759,1.1940439,838.32,837.55,0.8909808]
[1766663159058,1.1940439,838.31,837.55,0.8909808]
[1766663159257,1.1940439,838.3,837.55,0.8909808]
[1766663159458,0.89353365,838.4,837.55,0.8909808]
[1766663159657,1.19404401,838.39,837.55,0.8909808]
[1766663159958,1.19404401,838.38,837.55,0.8909808]
[1766663160156,1.19404401,838.37,837.55,0.8909808]
[1766663160360,1.19404401,838.36,837.55,0.8909808]
[1766663160555,1.19404401,838.35,837.55,0.8909808]
[1766663160759,1.19404401,838.34,837.55,0.8909808]
[1766663160959,1.19404401,838.33,837.55,0.8909808]
[1766663161155,1.19404401,838.32,837.55,0.8909808]
[1766663161359,1.19404401,838.31,837.55,0.8909808]
[1766663161560,1.19404401,838.3,837.55,0.8909808]
[1766663161856,0.89353365,838.4,837.55,0.8909808]
[1766663162060,1.19404437,838.39,837.55,0.8909808]
[1766663162260,1.19404437,838.38,837.55,0.8909808]
[1766663162460,1.19404437,838.37,837.55,0.8909808]
[1766663162658,1.19404437,838.36,837.55,0.8909808]
[1766663162862,1.19404437,838.35,837.55,0.8909808]
[1766663163059,1.19404437,838.34,837.55,0.8909808]
[1766663163362,1.19404437,838.33,837.55,0.8909808]
[1766663163662,1.19404437,838.32,837.55,0.8909808]
[1766663163857,0.89353365,838.4,837.55,0.8909808]
[1766663163858,1.19404437,838.31,837.55,0.8909808]
[1766663164062,1.19404437,838.3,837.55,0.8909808]
[1766663164259,0.89353365,838.4,837.55,0.8909808]
[1766663164560,1.19404449,838.39,837.55,0.8909808]
[1766663164864,1.19404449,838.38,837.55,0.8909808]
[1766663165063,1.19404449,838.37,837.55,0.8909808]
[1766663165362,1.19404449,838.36,837.55,0.8909808]
[1766663165563,1.19404449,838.35,837.55,0.8909808]
[1766663165763,1.19404449,838.34,837.55,0.8909808]
[1766663165963,1.19404449,838.33,837.55,0.8909808]
[1766663166160,1.19404449,838.32,837.55,0.8909808]
[1766663166359,1.19404449,838.31,837.55,0.8909808]
[1766663166564,1.19404449,838.3,837.55,0.8909808]
[1766663166763,0.89353365,838.4,837.55,0.8909808]
[1766663166964,1.19404516,838.39,837.55,0.8909808]
[1766663167164,1.19404516,838.38,837.55,0.8909808]
[1766663167362,1.19404516,838.37,837.56,0.8909808]
[1766663167561,1.19404516,838.36,837.56,0.8909808]
[1766663167860,1.19404516,838.35,837.56,0.8909808]
[1766663168062,1.19404516,838.34,837.56,0.8909808]
[1766663168261,1.19404516,838.33,837.56,0.8909808]
[1766663168464,1.19404516,838.32,837.56,0.8909808]
[1766663168661,1.19404516,838.31,837.56,0.8909808]
[1766663168964,1.19404516,838.3,837.56,0.8909808]
[1766663169162,1.19404516,838.29,837.56,0.8909808]
[1766663169361,0.89353365,838.39,837.56,0.8909808]
[1766663169562,1.19404457,838.38,837.56,0.8909808]
[1766663169761,1.19404457,838.37,837.56,0.8909808]
[1766663169962,1.19404457,838.36,837.56,0.8909808]
[1766663170162,1.19404457,838.35,837.56,0.8909808]
[1766663170364,1.19404457,838.34,837.57,0.8909808]
[1766663170564,1.19404457,838.33,837.57,0.8909808]
[1766663170768,1.19404457,838.32,837.57,0.8909808]
[1766663170966,1.19404457,838.31,837.57,0.8909808]
[1766663171165,1.19404457,838.3,837.57,0.8909808]
[1766663171368,1.19404457,838.29,837.57,0.8909808]
[1766663171666,1.19404457,838.28,837.57,0.8909808]
[1766663171865,0.89353365,838.39,837.57,0.8909808]
[1766663172069,1.19404492,838.38,837.57,0.8909808]
[1766663172270,1.19404492,838.37,837.58,0.8909808]
[1766663172470,1.19404492,838.36,837.58,0.8909808]
[1766663172665,1.19404492,838.35,837.58,0.8909808]
[1766663172870,1.19404492,838.34,837.58,0.8909808]
[1766663173069,1.19404492,838.33,837.58,0.8909808]
[1766663173273,1.19404492,838.32,837.59,0.8909808]
[1766663173573,1.19404492,838.31,837.59,0.8909808]
[1766663173772,1.19404492,838.3,837.59,0.8909808]
[1766663173972,1.19404492,838.29,837.59,0.8909808]
[1766663174169,1.19404492,838.28,837.59,0.8909808]
[1766663174371,1.19404492,838.27,837.59,0.8909808]
[1766663174571,1.19404492,838.26,837.59,0.8909808]
[1766663174772,0.89353365,838.36,837.59,0.8909808]
[1766663174972,1.19404504,838.35,837.59,0.8909808]
[1766663175170,1.19404504,838.34,837.6,0.8909808]
[1766663175368,1.19404504,838.33,837.6,0.8909808]
[1766663175573,1.19404504,838.32,837.6,0.8909808]
[1766663175774,1.19404504,838.31,837.6,0.8909808]
[1766663175974,1.19404504,838.3,837.6,0.8909808]
[1766663176175,1.19404504,838.29,837.6,0.8909808]
[1766663176374,1.19404504,838.28,837.6,0.8909808]
[1766663176570,1.19404504,838.27,837.6,0.8909808]
[1766663176774,1.19404504,838.26,837.6,0.8909808]
[1766663177072,0.89353365,838.36,837.6,0.8909808]
[1766663177275,1.19404539,838.35,837.6,0.8909808]
[1766663177476,1.19404539,838.34,837.6,0.8909808]
[1766663177679,1.19404539,838.33,837.6,0.8909808]
[1766663177873,1.19404539,838.32,837.6,0.8909808]
[1766663178177,1.19404539,838.31,837.6,0.8909808]
[1766663178379,1.19404539,838.3,837.6,0.8909808]
[1766663178579,1.19404539,838.29,837.6,0.8909808]
[1766663178875,0.89353365,838.36,837.6,0.8909808]
[1766663178876,1.19404539,838.28,837.6,0.8909808]
[1766663179174,1.19404539,838.27,837.6,0.8909808]
[1766663179376,1.19404539,838.26,837.6,0.8909808]
[1766663179574,1.19404539,838.25,837.6,0.8909808]
[1766663179778,0.89353365,838.36,837.6,0.8909808]
[1766663179975,1.19404563,838.35,837.6,0.8909808]
[1766663180178,1.19404563,838.34,837.6,0.8909808]
[1766663180378,1.19404563,838.33,837.6,0.8909808]
[1766663180578,1.19404563,838.32,837.6,0.8909808]
[1766663180776,1.19404563,838.31,837.6,0.8909808]
[1766663180974,1.19404563,838.3,837.6,0.8909808]
[1766663181178,1.19404563,838.29,837.6,0.8909808]
[1766663181380,1.19404563,838.28,837.6,0.8909808]
[1766663181580,1.19404563,838.27,837.6,0.8909808]
[1766663181781,1.19404563,838.26,837.6,0.8909808]
[1766663181981,1.19404563,838.25,837.6,0.8909808]
[1766663182182,0.89353365,838.35,837.6,0.8909808]
[1766663182383,1.19404587,838.34,837.6,0.8909808]
[1766663182584,1.19404587,838.33,837.6,0.8909808]
[1766663182884,1.19404587,838.32,837.6,0.8909808]
[1766663183082,1.19404587,838.31,837.6,0.8909808]
[1766663183280,1.19404587,838.3,837.61,0.8909808]
[1766663183479,1.19404587,838.29,837.61,0.8909808]
[1766663183679,1.19404587,838.28,837.61,0.8909808]
[1766663183882,1.19404587,838.27,837.61,0.8909808]
[1766663184080,1.19404587,838.26,837.61,0.8909808]
[1766663184284,1.19404587,838.25,837.61,0.8909808]
[1766663184486,0.89353365,838.35,837.61,0.8909808]
[1766663184686,1.19404528,838.34,837.61,0.8909808]
[1766663184984,1.19404528,838.33,837.61,0.8909808]
[1766663185186,1.19404528,838.32,837.61,0.8909808]
[1766663185386,1.19404528,838.31,837.61,0.8909808]
[1766663185587,1.19404528,838.3,837.61,0.8909808]
[1766663185785,1.19404528,838.29,837.61,0.8909808]
[1766663185981,1.19404528,838.28,837.61,0.8909808]
[1766663186180,1.19404528,838.27,837.61,0.8909808]
[1766663186484,1.19404528,838.26,837.61,0.8909808]
[1766663186685,1.19404528,838.25,837.61,0.8909808]
[1766663186888,1.19404528,838.24,837.61,0.8909808]
[1766663187087,0.89353365,838.34,837.61,0.8909808]
[1766663187286,1.19404528,838.33,837.62,0.8909808]
[1766663187483,0.89353365,838.34,837.62,0.8909808]
[1766663187484,1.19404528,838.32,837.62,0.8909808]
[1766663187786,1.19404528,838.31,837.62,0.8909808]
[1766663187987,1.19404528,838.3,837.62,0.8909808]
[1766663188188,1.19404528,838.29,837.62,0.8909808]
[1766663188484,1.19404528,838.28,837.62,0.8909808]
[1766663188788,1.19404528,838.27,837.62,0.8909808]
[1766663188982,1.19404528,838.26,837.62,0.8909808]
[1766663189190,1.19404528,838.25,837.62,0.8909808]
[1766663189385,1.19404528,838.24,837.62,0.8909808]
[1766663189584,1.19404528,838.23,837.62,0.8909808]
[1766663189789,0.89353365,838.33,837.62,0.8909808]
[1766663189989,1.19404528,838.32,837.62,0.8909808]
[1766663190188,1.19404528,838.31,837.62,0.8909808]
[1766663190489,1.19404528,838.3,837.63,0.8909808]
[1766663190688,1.19404528,838.29,837.63,0.8909808]
[1766663190984,1.19404528,838.28,837.63,0.8909808]
[1766663191188,1.19404528,838.27,837.63,0.8909808]
[1766663191488,1.19404528,838.26,837.63,0.8909808]
[1766663191686,1.19404528,838.25,837.63,0.8909808]
[1766663191884,1.19404528,838.24,837.63,0.8909808]
[1766663192088,1.19404528,838.23,837.63,0.8909808]
[1766663192390,1.19404528,838.22,837.63,0.8909808]
[1766663192590,0.89353365,838.33,837.63,0.8909808]
[1766663192886,1.19404528,838.32,837.63,0.8909808]
[1766663193089,1.19404528,838.31,837.63,0.8909808]
[1766663193291,1.19404528,838.3,837.63,0.8909808]
[1766663193491,1.19404528,838.29,837.63,0.8909808]
[1766663193692,1.19404528,838.28,837.63,0.8909808]
[1766663193889,1.19404528,838.27,837.63,0.8909808]
[1766663194087,0.89353365,838.33,837.63,0.8909808]
[1766663194088,1.19404528,838.26,837.63,0.8909808]
[1766663194291,1.19404528,838.25,837.63,0.8909808]
[1766663194591,1.19404528,838.24,837.63,0.8909808]
[1766663194891,1.19404528,838.23,837.63,0.8909808]
[1766663195086,1.19404528,838.22,837.63,0.8909808]
[1766663195290,0.89353365,838.33,837.63,0.8909808]
[1766663195490,1.19404575,838.32,837.63,0.8909808]
[1766663195692,1.19404575,838.31,837.63,0.8909808]
[1766663195892,1.19404575,838.3,837.63,0.8909808]
[1766663196092,1.19404575,838.29,837.63,0.8909808]
[1766663196291,1.19404575,838.28,837.63,0.8909808]
[1766663196492,1.19404575,838.27,837.63,0.8909808]
[1766663196691,1.19404575,838.26,837.63,0.8909808]
[1766663196893,1.19404575,838.25,837.63,0.8909808]
[1766663197094,1.19404575,838.24,837.63,0.8909808]
[1766663197289,1.19404575,838.23,837.63,0.8909808]
[1766663197494,1.19404575,838.22,837.63,0.8909808]
[1766663197693,0.89353365,838.32,837.63,0.8909808]
[1766663197892,1.19404575,838.31,837.63,0.8909808]
[1766663198196,1.19404575,838.3,837.63,0.8909808]
[1766663198390,1.19404575,838.29,837.63,0.8909808]
[1766663198592,1.19404575,838.28,837.63,0.8909808]
[1766663198791,1.19404575,838.27,837.63,0.8909808]
[1766663198992,1.19404575,838.26,837.63,0.8909808]
[1766663199196,1.19404575,838.25,837.63,0.8909808]
[1766663199491,1.19404575,838.24,837.63,0.8909808]
[1766663199693,1.19404575,838.23,837.63,0.8909808]
[1766663199895,1.19404575,838.22,837.63,0.8909808]
[1766663200094,0.89353365,838.32,837.63,0.8909808]
[1766663200296,1.19404575,838.31,837.63,0.8909808]
[1766663200493,1.19404575,838.3,837.63,0.8909808]
[1766663200798,1.19404575,838.29,837.63,0.8909808]
[1766663200997,1.19404575,838.28,837.63,0.8909808]
[1766663201195,1.19404575,838.27,837.63,0.8909808]
[1766663201391,1.19404575,838.26,837.63,0.8909808]
[1766663201592,1.19404575,838.25,837.63,0.8909808]
[1766663201795,1.19404575,838.24,837.63,0.8909808]
[1766663201998,1.19404575,838.23,837.63,0.8909808]
[1766663202293,1.19404575,838.22,837.63,0.8909808]
[1766663202497,0.89353365,838.32,837.63,0.8909808]
[1766663202795,1.19404575,838.31,837.63,0.8909808]
[1766663202992,1.19404575,838.3,837.63,0.8909808]
[1766663203197,1.19404575,838.29,837.63,0.8909808]
[1766663203497,0.89353365,838.32,836.79,0.012234]
[1766663203498,1.19404575,838.28,837.62,0.8909808]
[1766663203698,0.89353365,838.21,837.52,0.8909808]
[1766663203895,0.89353365,838.19,837.5,0.8909808]
[1766663204194,1.19404575,838.18,837.46,0.8909808]
[1766663204392,0.89353365,838.19,837.45,0.8909808]
[1766663204596,1.19426941,838.18,837.44,0.8909808]
[1766663204798,1.19426941,838.17,837.44,0.8909808]
[1766663204994,1.19426941,838.16,837.44,0.8909808]
[1766663205298,1.19426941,838.15,837.41,0.8909808]
[1766663205498,0.89353365,838.11,837.34,0.8909808]
[1766663205697,1.19426941,838.1,837.34,0.8909808]
[1766663206298,1.19426941,838.1,837.31,0.8909808]
[1766663206594,1.19426941,838.09,837.31,0.8909808]
[1766663206798,1.19426941,838.08,837.31,0.8909808]
[1766663206998,1.19426941,838.07,837.31,0.8909808]
[1766663207199,1.19426941,838.06,837.3,0.8909808]
[1766663207498,1.19426941,838.05,837.25,0.8909808]
[1766663207696,1.19426941,838.04,837.25,0.8909808]
[1766663207999,1.19426941,838.03,837.25,0.8909808]
[1766663208195,1.19426941,838.02,837.25,0.8909808]
[1766663208396,1.19426941,838.01,837.23,0.8909808]
[1766663208701,1.19426941,838.0,837.21,0.8909808]
[1766663208901,1.19426941,837.99,837.21,0.8909808]
[1766663209198,0.89353365,838.1,837.19,0.8909808]
[1766663209395,1.19452677,838.09,837.19,0.8909808]
[1766663209598,1.19452677,838.08,837.19,0.8909808]
[1766663209903,1.19452677,838.07,837.19,0.8909808]
[1766663210104,1.19452677,838.06,837.19,0.8909808]
[1766663210399,1.19452677,838.05,837.18,0.8909808]
[1766663210604,1.19452677,838.04,837.18,0.8909808]
[1766663210798,1.19452677,838.03,837.18,0.8909808]
[1766663211002,1.19452677,838.02,837.18,0.8909808]
[1766663211198,0.89353365,838.12,837.16,0.8909808]
[1766663211398,1.19452677,838.11,837.16,0.8909808]
[1766663211602,1.19452677,838.1,837.16,0.8909808]
[1766663211800,1.19452677,838.09,837.16,0.8909808]
[1766663212005,1.19452677,838.08,837.16,0.8909808]
[1766663212203,1.19452677,838.07,837.15,0.8909808]
[1766663212402,1.19452677,838.06,837.15,0.8909808]
[1766663212606,1.19452677,838.05,837.15,0.8909808]
[1766663212909,1.19452677,838.04,837.15,0.8909808]
[1766663213104,1.19452677,838.03,837.15,0.8909808]
[1766663213309,0.89353365,838.14,837.15,0.8909808]
[1766663213503,1.19452677,838.13,837.15,0.8909808]
[1766663213708,1.19452677,838.12,837.15,0.8909808]
[1766663213906,1.19452677,838.11,837.15,0.8909808]
[1766663214208,1.19452677,838.1,837.14,0.8909808]
[1766663214409,1.19452677,838.09,837.14,0.8909808]
[1766663214604,1.19452677,838.08,837.14,0.8909808]
[1766663214808,1.19452677,838.07,836.97,1.19046268]
[1766663215010,1.19452677,838.06,836.97,1.19046268]
[1766663215309,1.19452677,838.05,836.97,1.19046268]
[1766663215510,0.89353365,838.14,836.97,1.19046268]
[1766663215705,1.19452665,838.13,836.97,1.19046268]
[1766663216003,1.19452665,838.12,836.97,1.19046268]
[1766663216207,1.19452665,838.11,836.96,1.19046268]
[1766663216407,1.19452665,838.1,836.96,1.19046268]
[1766663216708,1.19452665,838.09,836.96,1.19046268]
[1766663217008,1.19452665,838.08,836.96,1.19046268]
[1766663217208,1.19452665,838.07,836.96,1.19046268]
[1766663217410,1.19452665,838.06,836.95,1.19046268]
[1766663217612,0.89353365,838.15,836.95,1.19046268]
[1766663217809,1.19452665,838.14,836.95,1.19046268]
[1766663218011,1.19452665,838.13,836.95,1.19046268]
[1766663218312,1.19452665,838.12,836.95,1.19046268]
[1766663218612,1.19452665,838.11,836.95,1.19046268]
[1766663218812,1.19452665,838.1,836.95,1.19046268]
[1766663219107,1.19452665,838.09,836.95,1.19046268]
[1766663219311,1.19452665,838.08,836.95,1.19046268]
[1766663219511,1.19452665,838.07,836.95,1.19046268]
[1766663219711,0.89353365,838.16,836.95,1.19046268]
[1766663219908,1.19452677,838.15,836.95,1.19046268]
[1766663220107,1.19452677,838.14,836.95,1.19046268]
[1766663220312,1.19452677,838.13,836.94,1.19046268]
[1766663220513,1.19452677,838.12,836.94,1.19046268]
[1766663220715,1.19452677,838.11,836.94,1.19046268]
[1766663221014,1.19452677,838.1,836.94,1.19046268]
[1766663221314,1.19452677,838.09,836.94,1.19046268]
[1766663221510,1.19452677,838.08,836.94,1.19046268]
[1766663221710,1.19452677,838.07,836.94,1.19046268]
[1766663222010,0.89353365,838.17,836.94,1.19046268]
[1766663222209,1.19452677,838.16,836.94,1.19046268]
[1766663222410,1.19452677,838.15,836.94,1.19046268]
[1766663222614,1.19452677,838.14,836.94,1.19046268]
[1766663222814,1.19452677,838.13,836.94,1.19046268]
[1766663223016,1.19452677,838.12,836.94,1.19046268]
[1766663223213,1.19452677,838.11,836.94,1.19046268]
[1766663223413,1.19452677,838.1,836.94,1.19046268]
[1766663223717,1.19452677,838.09,836.94,1.19046268]
[1766663223913,1.19452677,838.08,836.94,1.19046268]
[1766663224216,0.89353365,838.17,836.93,1.19046268]
[1766663224414,1.19452677,838.16,836.93,1.19046268]
[1766663224618,1.19452677,838.15,836.93,1.19046268]
[1766663224819,1.19452677,838.14,836.93,1.19046268]
[1766663225017,1.19452677,838.13,836.93,1.19046268]
[1766663225218,1.19452677,838.12,836.93,1.19046268]
[1766663225416,1.19452677,838.11,836.93,1.19046268]
[1766663225618,1.19452677,838.1,836.93,1.19046268]
[1766663225819,1.19452677,838.09,836.93,1.19046268]
[1766663226114,1.19452677,838.08,836.93,1.19046268]
[1766663226319,0.89353365,838.18,836.93,1.19046268]
[1766663226519,1.19452688,838.17,836.93,1.19046268]
[1766663226815,1.19452688,838.16,836.93,1.19046268]
[1766663227014,1.19452688,838.15,836.93,1.19046268]
[1766663227218,1.19452688,838.14,836.93,1.19046268]
[1766663227419,1.19452688,838.13,836.93,1.19046268]
[1766663227616,1.19452688,838.12,836.93,1.19046268]
[1766663227818,1.19452688,838.11,836.93,1.19046268]
[1766663228014,1.19452688,838.1,836.93,1.19046268]
[1766663228214,1.19452688,838.09,836.93,1.19046268]
[1766663228416,1.19452688,838.08,836.93,1.19046268]
[1766663228616,0.89353365,838.18,836.93,1.19046268]
[1766663228818,1.194527,838.17,836.93,1.19046268]
[1766663229020,1.194527,838.16,836.93,1.19046268]
[1766663229220,1.194527,838.15,836.93,1.19046268]
[1766663229418,1.194527,838.14,836.93,1.19046268]
[1766663229621,1.194527,838.13,836.93,1.19046268]
[1766663229921,0.89353365,838.18,836.93,1.19046268]
[1766663229922,1.194527,838.12,836.93,1.19046268]
[1766663230218,1.194527,838.11,836.93,1.19046268]
[1766663230417,1.194527,838.1,836.93,1.19046268]
[1766663230620,1.194527,838.09,836.93,1.19046268]
[1766663230816,1.194527,838.08,836.93,1.19046268]
[1766663231018,0.89353365,838.18,836.93,1.19046268]
[1766663231220,2.08806065,838.17,836.93,1.19046268]
[1766663231421,1.194527,838.16,836.93,1.19046268]
[1766663231620,1.194527,838.15,836.93,1.19046268]
[1766663231920,1.194527,838.14,836.93,1.19046268]
[1766663232223,1.194527,838.13,836.93,1.19046268]
[1766663232424,1.194527,838.12,836.93,1.19046268]
[1766663232724,1.194527,838.11,836.93,1.19046268]
[1766663232925,1.194527,838.1,836.93,1.19046268]
[1766663233119,1.194527,838.09,836.93,1.19046268]
[1766663233324,1.194527,838.08,836.94,1.19046268]
[1766663233624,0.89353365,838.17,836.94,1.19046268]
[1766663233825,1.194527,838.16,836.94,1.19046268]
[1766663234121,1.194527,838.15,836.94,1.19046268]
[1766663234321,1.194527,838.14,836.94,1.19046268]
[1766663234525,1.194527,838.13,836.94,1.19046268]
[1766663234724,1.194527,838.12,836.94,1.19046268]
[1766663234924,1.194527,838.11,836.94,1.19046268]
[1766663235120,1.194527,838.1,836.94,1.19046268]
[1766663235422,1.194527,838.09,836.94,1.19046268]
[1766663235626,1.194527,838.08,836.94,1.19046268]
[1766663235825,1.194527,838.07,836.94,1.19046268]
[1766663236022,0.89353365,838.16,836.94,1.19046268]
[1766663236224,1.194527,838.15,836.95,1.19046268]
[1766663236422,1.194527,838.14,836.95,1.19046268]
[1766663236628,1.194527,838.13,836.95,1.19046268]
[1766663236824,1.194527,838.12,836.95,1.19046268]
[1766663237026,1.194527,838.11,836.95,1.19046268]
[1766663237226,1.194527,838.1,836.95,1.19046268]
[1766663237432,1.194527,838.09,836.95,1.19046268]
[1766663237630,1.194527,838.08,836.95,1.19046268]
[1766663237827,1.194527,838.07,836.95,1.19046268]
[1766663238026,1.194527,838.06,836.95,1.19046268]
[1766663238226,1.194527,838.06,836.8,1.78569412]
[1766663238227,0.89353365,838.15,836.96,1.19046268]
[1766663238429,1.194527,838.14,836.96,1.19046268]
[1766663238626,1.194527,838.13,836.96,1.19046268]
[1766663238828,1.194527,838.12,836.96,1.19046268]
[1766663239031,0.89353365,838.15,836.96,1.19046268]
[1766663239032,1.194527,838.11,836.96,1.19046268]
[1766663239332,1.194527,838.1,836.96,1.19046268]
[1766663239628,1.194527,838.09,836.96,1.19046268]
[1766663239827,1.194527,838.08,836.96,1.19046268]
[1766663240027,1.194527,838.07,836.96,1.19046268]
[1766663240230,1.194527,838.06,836.97,1.19046268]
[1766663240429,1.194527,838.05,836.97,1.19046268]
[1766663240631,1.194527,838.04,836.97,1.19046268]
[1766663240830,0.89353365,838.14,836.97,1.19046268]
[1766663241033,1.19452641,838.13,836.97,1.19046268]
[1766663241233,1.19452641,838.12,836.98,1.19046268]
[1766663241533,1.19452641,838.11,836.98,1.19046268]
[1766663241829,1.19452641,838.1,836.98,1.19046268]
[1766663242032,1.19452641,838.09,836.98,1.19046268]
[1766663242234,1.19452641,838.08,836.99,1.19046268]
[1766663242433,1.19452641,838.07,836.99,1.19046268]
[1766663242630,1.19452641,838.06,836.99,1.19046268]
[1766663242829,1.19452641,838.05,836.99,1.19046268]
[1766663243034,1.19452641,838.04,836.99,1.19046268]
[1766663243333,1.19452641,838.03,837.0,1.19046268]
[1766663243531,1.19452641,838.02,837.0,1.19046268]
[1766663243730,0.89353365,838.11,837.0,1.19046268]
[1766663243930,1.19452664,838.1,837.0,1.19046268]
[1766663244134,1.19452664,838.09,837.0,1.19046268]
[1766663244332,1.19452664,838.08,837.01,1.19046268]
[1766663244534,1.19452664,838.07,837.01,1.19046268]
[1766663244729,1.19452664,838.06,837.01,1.19046268]
[1766663244932,1.19452664,838.05,837.01,1.19046268]
[1766663245132,1.19452664,838.04,837.01,1.19046268]
[1766663245328,1.19452664,838.03,837.02,1.19046268]
[1766663245534,0.89353365,838.09,837.02,1.19046268]